Cogmind - Beta 15 *** ADVENTURER MODE // 2025.09.16 @ 13:29:50 Player: cloudbreak Result: Destroyed by P-70 Sage with Tesla Rifle Performance ------------- Evolutions (6) 3000 Regions Visited (11) 2200 Robots Destroyed (94) 470 Value Destroyed (4319) 4319 Prototype IDs (6) 120 Alien Tech Used (0) 0 Bonus (2159) 2159 TOTAL SCORE: 12268 Bonus ------- High Alert Combat Kills 444 Follower Combat Kills 37 Entered Garrisons 400 Used RIF Installer 1000 Registered with UFD 300 Friendly Fire -22 Cogmind --------- Core Integrity 0/1150 Matter 56/300 Energy 16/100 System Corruption 22% Temperature Cool (0) Movement Core (50) Location -4/Factory Parts ------- > --- POWER (2) -------- (None) > --- PROPULSION (5) --- (None) > --- UTILITY (8) ------ Hacking Suite > --- WEAPON (4) ------- (None) > --- INVENTORY (5) ---- Overtuned Huge Scrapsphere Nuclear Pulse Thruster Transmission Jammer Improved Force Field Peak State ------------ > --- POWER ------------ Cold Fusion Reactor Micro Antimatter Reactor > --- PROPULSION ------- Improved Medium Treads Overtuned Medium Treads Overtuned Scrapsphere > --- UTILITY ---------- Scrap Suit Advanced Heat Sink Improved Cooling System Large Storage Unit Kinecellerator Makeshift Hacking Suite > --- WEAPON ----------- KE Penetrator KE Penetrator Overtuned Coil Gun Enhanced Coil Gun > --- INVENTORY -------- Overtuned Huge Scrapsphere Advanced Force Field Authchip [R/Combat] Authchip [R/Combat] Relay Coupler [Sentry] Relay Coupler [Heavy] Heavy Disruptor Cannon Plasma Cannon Phase Cannon Hypervelocity Railgun Advanced Assault Cannon Proton Missile Launcher Gamma Bomb Array [Rating: 87] Favorites ----------- Power Light Nuclear Core Engine Improved Deuterium Engine Power Core Light Nuclear Core Reactor Cold Fusion Reactor Propulsion Improved Medium Treads Treads Improved Medium Treads Wheel Overtuned Scrapsphere Hover Unit Gyrokinetic Inverter Utility Small Storage Unit Device Advanced Heat Sink Storage Small Storage Unit Processor Advanced Targeting Computer Hackware Makeshift Hacking Suite Protection Layered Medium Armor Plating Weapon Phase Cannon Energy Gun Pulse Rifle Energy Cannon Phase Cannon Ballistic Gun Overtuned Coil Gun Ballistic Cannon Assault Cannon Launcher Improved Proton Missile Launcher Special Melee Weapon Advanced Datajack Build | -11 -10 -10 -10 -7 -5 -5 -5 -5 -4 -4 -4 ------- Run | Yrd Mat Min Sub Scr Fac Gar Fac Gar Fac Was Fac Slots Evolved 12 | . . . . . 10 . . . 2 . . Power 1 | . . . . . 1 . . . . . . Propulsion 3 | . . . . . 2 . . . 1 . . Utility 6 | . . . . . 5 . . . 1 . . Weapon 2 | . . . . . 2 . . . . . . Parts Attached 85 | 6 3 6 4 11 8 10 3 12 2 3 17 Power 15 | 1 1 1 1 1 2 1 1 3 . 1 2 Engine 5 | 1 . . . 1 1 . . 2 . . . Core 6 | . 1 1 1 . . . 1 1 . . 1 Reactor 4 | . . . . . 1 1 . . . 1 1 Propulsion 22 | 2 1 1 3 4 1 . 1 2 . . 7 Treads 7 | . . . . 3 . . 1 2 . . 1 Leg . | . . . . . . . . . . . . Wheel 9 | 2 1 1 3 1 1 . . . . . . Hover 6 | . . . . . . . . . . . 6 Flight . | . . . . . . . . . . . . Utility 23 | 1 1 . . 3 4 5 1 4 1 1 2 Device 14 | . . . . . 3 5 1 2 1 1 1 Storage 4 | 1 . . . 2 . . . 1 . . . Processor 2 | . 1 . . 1 . . . . . . . Hackware 2 | . . . . . 1 . . . . . 1 Protection 1 | . . . . . . . . 1 . . . Artifact . | . . . . . . . . . . . . Weapon 25 | 2 . 4 . 3 1 4 . 3 1 1 6 Energy Gun 7 | 1 . 2 . . . . . 2 . . 2 Energy Cannon 4 | . . . . 2 . 1 . . . . 1 Ballistic Gun 7 | 1 . . . 1 1 3 . . 1 . . Ballistic Cannon 2 | . . 1 . . . . . . . . 1 Launcher 4 | . . 1 . . . . . 1 . 1 1 Special Weapon . | . . . . . . . . . . . . Impact Weapon . | . . . . . . . . . . . . Slashing Weapon . | . . . . . . . . . . . . Piercing Weapon . | . . . . . . . . . . . . Special Melee Weapon 1 | . . . . . . . . . . . 1 Unidentified Prototypes 3 | . . . . . 2 . . . 1 . . Corrupted Parts 1 | . . . . . . . . . . 1 . System Corruption 2 | . . . . . . . . . . 2 . Parts Lost 51 | . . 3 2 . . 5 2 15 . 9 15 Power 9 | . . 1 1 . . . 1 2 . 2 2 Propulsion 14 | . . 1 1 . . 1 1 3 . 1 6 Utility 11 | . . . . . . 3 . 4 . 3 1 Weapon 17 | . . 1 . . . 1 . 6 . 3 6 Highest Loss Streak 14 | . . 2 2 . . 2 1 14 . 8 5 To Critical Strikes . | . . . . . . . . . . . . Average Backups 7 | 1 1 6 7 8 3 8 13 10 8 4 3 Power . | . 1 2 1 . . . . . 1 . . Propulsion . | . . . . 1 1 1 1 1 1 1 1 Utility 3 | . . 3 4 4 . 3 5 5 4 1 1 Weapon 2 | . . 1 1 1 2 4 6 3 2 1 . Tool/Special . | . . . . . . . . . . . . Unused Backups 13 | . . . . 3 . . 1 2 . 4 3 Power . | . . . . . . . . . . . . Propulsion 1 | . . . . . . . . . . . 1 Utility 11 | . . . . 3 . . 1 1 . 4 2 Weapon 1 | . . . . . . . . 1 . . . Tool/Special . | . . . . . . . . . . . . Average Slot Usage (%) 87 | . 98 98 95 95 88 90 86 73 75 33 22 Engine 1 | . 4 . . . 1 2 . 5 10 4 . Core 7 | . 9 13 11 13 4 . . 2 . . . Reactor 1 | . . . . . . 7 8 2 . . . Treads 11 | . . . . 20 16 14 10 9 10 4 2 Wheel 8 | . 28 27 25 3 4 5 5 1 . . . Device 7 | . . . . . 16 21 23 16 23 10 . Storage 10 | . 14 14 14 14 5 5 5 10 10 4 . Processor 8 | . 12 14 14 14 5 1 . . . . . Hackware 1 | . . . . . 4 5 5 2 . . 2 Energy Gun 5 | . 14 14 14 3 3 . . 2 5 1 1 Energy Cannon 8 | . . . . 20 10 6 5 2 . . 2 Ballistic Gun 6 | . 14 4 . 3 6 15 17 11 10 4 . Ballistic Cannon 2 | . . 8 14 . . . . . . . 1 Peak Build Rating 87 | 6 9 14 16 34 76 87 86 84 86 86 61 Average Rating 42 | 3 8 12 14 27 67 82 83 69 82 35 32 On Entrance 40 | . 6 9 14 16 34 76 85 83 76 86 2 Naked Turns 72 | . . . . . . . . . . 65 7 Heaviest Build 104 | 13 13 18 18 40 76 76 75 95 104 104 29 Greatest Support 85 | 20 20 26 30 60 85 85 55 60 60 60 44 Greatest Overweight (x) 13 | . . 1 4 8 . 1 2 13 1 4 2 Average Overweight (x) . | . . . . . . . 1 1 1 . . Largest Inventory Capacity 15 | 8 8 8 8 15 15 15 15 15 15 15 5 Average Capacity 11 | 6 8 8 8 9 15 15 15 15 15 9 5 Most Carried 15 | 5 4 8 8 12 11 15 15 15 11 10 5 Average Carried 8 | 1 1 6 7 8 4 9 14 12 10 6 4 Final Capacity 15 | 8 8 8 8 15 15 15 15 15 15 5 5 Final Carried 15 | . 3 8 7 12 5 15 15 10 10 4 5 Class Distribution -------------------- 60% | Mutant 25% | Hacker-Scrapper 8% | Scavenger-Tank Dominant Class ---------------- Mutant | -10/Materials Mutant | -10/Mines Mutant | -10/Subcaves Mutant | -7/Scraptown Hacker-Scrapper | -5/Factory Hacker-Scrapper | -5/Garrison Hacker-Scrapper | -5/Factory Scavenger-Tank | -5/Garrison Scavenger-Tank | -4/Factory Mutant | -4/Waste Hacker-Mutant | -4/Factory Resources | -11 -10 -10 -10 -7 -5 -5 -5 -5 -4 -4 -4 ----------- Run | Yrd Mat Min Sub Scr Fac Gar Fac Gar Fac Was Fac Matter Collected 2763 | 134 173 219 215 209 . 1038 180 438 58 . 99 Remotely . | . . . . . . . . . . . . Salvage Created 4765 | . 346 282 298 . 34 2068 510 725 118 319 65 Parts 188 | . 17 13 18 . . 74 15 35 4 5 7 Haulers Intercepted 1 | . 1 . . . . . . . . . . Recyclers Shooed 2 | . 1 1 . . . . . . . . . Parts Field Recycled . | . . . . . . . . . . . . Retrieved Matter . | . . . . . . . . . . . . Parts Self-Destructed 23 | . . . 23 . . . . . . . . Prevented . | . . . . . . . . . . . . Kills | -11 -10 -10 -10 -7 -5 -5 -5 -5 -4 -4 -4 ------- Run | Yrd Mat Min Sub Scr Fac Gar Fac Gar Fac Was Fac Combat Hostiles Destroyed 89 | . 6 8 12 . . 33 8 16 4 1 1 Guns 64 | . 6 7 6 . . 22 4 13 4 1 1 Cannons 24 | . . 1 6 . . 10 4 3 . . . Classes Destroyed 12 | . 3 2 1 . . 2 . 2 . 1 1 Tunneler 1 | . . . . . . . . . . . 1 Hauler 1 | . 1 . . . . . . . . . . Watcher 3 | . 1 . . . 1 1 . . . . . Swarmer 28 | . . 3 6 . . 7 . 8 4 . . Grunt 36 | . 6 3 . . . 16 6 5 . . . Sentry 9 | . . 2 1 . . 4 2 . . . . Specialist 2 | . . . . . . 2 . . . . . Hunter 4 | . . . . . . 4 . . . . . Programmer 3 | . . . . . . . . 2 . . 1 Behemoth 1 | . . . . . . . . 1 . . . Compactor 1 | . . . . . . . . . . 1 . Subdweller 5 | . . . 5 . . . . . . . . Best Kill Streak 8 | . 2 3 3 . 1 8 3 6 4 1 1 Combat Bots Only 8 | . 2 3 3 . . 8 3 6 4 1 1 Max Kills in Single Turn 3 | . 1 1 1 . 1 2 1 3 2 1 1 Gunslinging 1 | . . . . . . . . . 1 . . Exploded . | . . . . . . . . . . . . Melee . | . . . . . . . . . . . . Uniques/NPCs Destroyed . | . . . . . . . . . . . . Combat | -11 -10 -10 -10 -7 -5 -5 -5 -5 -4 -4 -4 -------- Run | Yrd Mat Min Sub Scr Fac Gar Fac Gar Fac Was Fac Hostile Shots Fired 671 | . 22 44 109 . . 118 29 141 20 9 179 Missed 199 | . 5 10 53 . . 32 10 29 7 . 53 Hits 472 | . 17 34 56 . . 86 19 112 13 9 126 Melee 9 | . . . . . . . . . . 9 . Projectile 463 | . 17 34 56 . . 86 19 112 13 . 126 AOE 1 | . . . . . . . . . . . 1 Critical Strikes 25 | . 1 . . . . 3 2 4 1 4 10 Part Disruptions 2 | . . . . . . 2 . . . . . Damage Taken 7076 | . 177 360 450 . . 1257 309 1764 105 310 2344 Core 1809 | . 21 158 66 . . 41 34 335 . 143 1011 Absorbed by Shields 153 | . . . . . . . . 97 56 . . Ignored by Resistances 2014 | . 53 103 127 . . 359 84 514 48 80 646 Regen/Repaired (Parts) 90 | . 5 . . . . 49 36 . . . . Core Remaining (%) 53 | 100 . . . 2 . . . 59 . . . Volleys Fired 313 | . 26 24 38 . 1 80 20 64 6 13 41 Largest 4 | . 2 2 2 . 3 4 3 3 3 3 1 Hottest 227 | . 70 76 100 . 142 227 142 191 135 135 88 Shots Fired 728 | . 52 43 76 . 3 289 60 118 18 30 39 Gun 521 | . 52 42 37 . 2 197 40 89 18 29 15 Cannon 205 | . . 1 39 . 1 92 20 29 . . 23 Launcher 2 | . . . . . . . . . . 1 1 Special . | . . . . . . . . . . . . Kinetic 437 | . 26 19 39 . 2 197 40 57 12 22 23 Thermal 264 | . 26 24 37 . 1 92 20 49 . . 15 Explosive . | . . . . . . . . . . . . Electromagnetic 27 | . . . . . . . . 12 6 8 1 Robot Hit Streak 56 | . 39 31 16 . 9 56 14 18 6 18 34 Robot Miss Streak 2 | . 1 1 2 . . 2 2 2 1 1 1 Penetration Max 1 | . . . . . . 1 . 1 1 1 . Secondary Targets 7 | . 2 2 . . . . . . 3 . . Max Gunslinging Chain 2 | . 1 1 . . . . . . 2 . . Shots Hit Robots 512 | . 45 38 31 . 3 188 40 92 12 29 34 Core Hits 186 | . 23 14 16 . 1 67 17 29 6 5 8 Critical Kills 11 | . . . . . . 6 . 2 1 1 1 Critical Parts Destroyed 22 | . 1 . . . . 6 2 4 3 . 6 Critical Strikes 51 | . 3 1 1 . . 13 2 8 4 7 12 Burn 3 | . 2 1 . . . . . . . . . Destroy 46 | . 1 . . . . 13 2 7 4 7 12 Blast 1 | . . . 1 . . . . . . . . Corrupt 1 | . . . . . . . . 1 . . . Melee Attacks 3 | . . . . . . . . . . . 3 Impact . | . . . . . . . . . . . . Slashing . | . . . . . . . . . . . . Piercing . | . . . . . . . . . . . . Sneak Attacks 2 | . . . . . . . . . . . 2 Combat Hostiles . | . . . . . . . . . . . . Follow-up Attacks . | . . . . . . . . . . . . Damage Inflicted 12151 | . 474 437 575 . 90 5824 1241 2004 294 474 738 Guns 8344 | . 473 407 270 . 65 3680 907 1446 294 472 330 Cannons 3784 | . . 20 305 . 25 2144 334 558 . . 398 Explosions 12 | . . . . . . . . . . 2 10 Melee . | . . . . . . . . . . . . Ramming 11 | . 1 10 . . . . . . . . . Kinetic 7239 | . 186 147 305 . 65 3680 907 853 237 461 398 Thermal 4628 | . 287 280 270 . 25 2144 334 958 . . 330 Explosive . | . . . . . . . . . . . . Electromagnetic 273 | . . . . . . . . 193 57 13 10 Impact . | . . . . . . . . . . . . Slashing . | . . . . . . . . . . . . Piercing . | . . . . . . . . . . . . Highest Corruption 21 | . 1 1 1 . . 1 1 7 . 13 21 Average Corruption 2 | . 1 1 1 . . 1 1 4 . 7 14 Corruption Purged . | . . . . . . . . . . . . Corruption Blocked . | . . . . . . . . . . . . Effects 87 | . 3 10 7 . . 15 1 20 . 6 25 Message Errors 18 | . 2 3 . . . 2 . 6 . 1 4 Matter Fused 19 | . . 4 3 . . 2 . 5 . 1 4 Heat Flow Errors 9 | . . . 1 . . 4 . 2 . . 2 Energy Discharges 11 | . 1 1 2 . . 1 . 1 . . 5 Parts Fused 2 | . . . . . . . . 1 . . 1 Data Loss (minor) 9 | . . . . . . 3 1 2 . . 3 Data Loss (major) 4 | . . 1 . . . 1 . . . 1 1 Misfires 6 | . . 1 1 . . 1 . 2 . 1 . Alerts 1 | . . . . . . . . . . 1 . Misdirections 4 | . . . . . . . . . . 1 3 Weapon Failures 4 | . . . . . . 1 . 1 . . 2 Overload Shots . | . . . . . . . . . . . . Overflow Damage 72 | . . . . . . 67 . . . . 5 Projectiles 61 | . . . . . . 56 . . . . 5 Explosions 11 | . . . . . . 11 . . . . . Melee . | . . . . . . . . . . . . Knockbacks 4 | . . . 2 . . . . . . . 2 Impact . | . . . . . . . . . . . . Kinetic 4 | . . . 2 . . . . . . . 2 Secondary . | . . . . . . . . . . . . Self-Inflicted Damage 109 | . . 5 . . . 86 . . . 18 . Shots 2 | . . . . . . 1 . . . 1 . Rammed 2 | . 1 1 . . . . . . . . . Targets Rammed 2 | . 1 1 . . . . . . . . . Kicked . | . . . . . . . . . . . . Crushed . | . . . . . . . . . . . . Highest Temperature 497 | . 180 343 172 . 66 497 69 208 . 10 289 Average Temperature 96 | . 69 137 33 . 44 122 31 74 . 7 93 Received Heat Transfer 2017 | . 147 177 246 . . 294 153 258 . . 742 Effects 5 | . . . . . . 5 . . . . . Shutdowns 1 | . . . . . . 1 . . . . . Interference 1 | . . . . . . 1 . . . . . Damage (major) 3 | . . . . . . 3 . . . . . Siege Activations . | . . . . . . . . . . . . Martial Activations . | . . . . . . . . . . . . Shielding Activations . | . . . . . . . . . . . . Robots Disrupted . | . . . . . . . . . . . . Combat Hostiles . | . . . . . . . . . . . . Robots Corrupted . | . . . . . . . . . . . . Combat Hostiles . | . . . . . . . . . . . . Parts Fried 1 | . . . . . . . . 1 . . . Impact Corruptions . | . . . . . . . . . . . . Robots Melted . | . . . . . . . . . . . . Combat Hostiles . | . . . . . . . . . . . . Parts Melted 16 | . 3 6 4 . . 1 . 2 . . . Heat Transferred 7903 | . 999 851 592 . 50 2749 650 1642 . . 370 Parts Sabotaged . | . . . . . . . . . . . . Parts Stolen . | . . . . . . . . . . . . Parts Stripped . | . . . . . . . . . . . . Power Chain Reactions . | . . . . . . . . . . . . Alert | -11 -10 -10 -10 -7 -5 -5 -5 -5 -4 -4 -4 ------- Run | Yrd Mat Min Sub Scr Fac Gar Fac Gar Fac Was Fac Maximum Alert Level 4 | . . . . . . 4 2 2 1 . . Low Security (%) 54 | 100 100 100 . . 100 25 . . 72 100 100 Level 1 12 | . . . . . . 7 68 29 27 . . Level 2 17 | . . . . . . 18 31 70 . . . Level 3 12 | . . . . . . 39 . . . . . Level 4 2 | . . . . . . 9 . . . . . Level 5 . | . . . . . . . . . . . . High Security . | . . . . . . . . . . . . Max Security . | . . . . . . . . . . . . Peak Influence 1181 | . 83 60 . . 7 1181 536 588 267 34 40 Initial 536 | . . 10 . . . . 536 283 267 34 . Average 280 | . 34 6 . . . 568 381 454 142 8 4 Influence Increases 2869 | . 183 180 240 . 7 1291 263 455 140 4 106 Destroy 0b10 Robot/C 1680 | . 120 160 140 . . 680 160 320 80 . 20 Destroy 0b10 Robot/NC 35 | . 10 . . . 5 15 . . . . 5 Destroy Leader 186 | . 34 20 10 . 2 40 40 30 10 . . Allied During Kill 1 | . . . . . . 1 . . . . . Successful Hack 77 | . 19 . . . . . 10 22 5 . 21 Disable Machine 54 | . . . . . . 36 9 9 . . . Anti-Garrison Action 300 | . . . . . . 300 . . . . . Destroy Structure 266 | . . . . . . 204 44 14 . 4 . Partial Spotted 30 | . . . . . . . . . . . 30 Lose Combat Pursuer 240 | . . . 90 . . 15 . 60 45 . 30 Influence Decreases 2869 | . 150 213 205 35 7 110 985 326 611 121 106 Entered New Map 1283 | . . 23 . 35 . . 645 176 321 83 . Time Decay 1097 | . 150 180 185 . 7 . 170 . 290 20 95 Lost Part 279 | . . 10 20 . . 50 20 150 . 18 11 Lost Ally 60 | . . . . . . 60 . . . . . Purge Threat 150 | . . . . . . . 150 . . . . Squads Dispatched 10 | . 2 1 . . . . 4 . 1 . 2 Investigation 4 | . 2 1 . . . . 1 . . . . Extermination 3 | . . . . . . . . . 1 . 2 Reinforcement 1 | . . . . . . . 1 . . . . Assault . | . . . . . . . . . . . . Garrison 2 | . . . . . . . 2 . . . . Intercept . | . . . . . . . . . . . . Searches Triggered . | . . . . . . . . . . . . Construction Impeded . | . . . . . . . . . . . . Haulers Reinforced . | . . . . . . . . . . . . Active Scanning Responses . | . . . . . . . . . . . . Cargo Convoy Interrupts . | . . . . . . . . . . . . Stealth | -11 -10 -10 -10 -7 -5 -5 -5 -5 -4 -4 -4 --------- Run | Yrd Mat Min Sub Scr Fac Gar Fac Gar Fac Was Fac Distress Signals 1 | . 1 . . . . . . . . . . Communications Jammed . | . . . . . . . . . . . . Distress Signals . | . . . . . . . . . . . . Times Spotted 116 | . 10 10 16 . 1 33 8 17 7 5 9 Peak Tracking Total 6 | . 4 3 6 . 1 6 3 6 5 4 4 Tactical Retreats 10 | . . . 3 . . 1 . 2 2 . 2 Traps | -11 -10 -10 -10 -7 -5 -5 -5 -5 -4 -4 -4 ------- Run | Yrd Mat Min Sub Scr Fac Gar Fac Gar Fac Was Fac Traps Triggered 14 | . 1 . 2 . . 5 . 5 1 . . Indirectly . | . . . . . . . . . . . . Trap Hack Attempts . | . . . . . . . . . . . . Triggered . | . . . . . . . . . . . . Disarmed . | . . . . . . . . . . . . Reprogrammed . | . . . . . . . . . . . . Reused . | . . . . . . . . . . . . Traps Extracted . | . . . . . . . . . . . . Installed . | . . . . . . . . . . . . Triggered . | . . . . . . . . . . . . Machines | -11 -10 -10 -10 -7 -5 -5 -5 -5 -4 -4 -4 ---------- Run | Yrd Mat Min Sub Scr Fac Gar Fac Gar Fac Was Fac Machines Disabled 12 | . . . 2 . . 8 1 1 . . . Max in Single Turn 2 | . . . 1 . . 2 1 1 . . . Garrison Relay 1 | . . . . . . 1 . . . . . Phase Generator 1 | . . . . . . 1 . . . . . Machines Repaired . | . . . . . . . . . . . . Machines Dismantled . | . . . . . . . . . . . . Machines Sabotaged . | . . . . . . . . . . . . Overloaded Fab Kills . | . . . . . . . . . . . . Hacking | -11 -10 -10 -10 -7 -5 -5 -5 -5 -4 -4 -4 --------- Run | Yrd Mat Min Sub Scr Fac Gar Fac Gar Fac Was Fac Machines Accessed 21 | . 6 1 1 3 1 2 3 2 1 . 1 Terminals 10 | . 4 . . . . 2 2 2 . . . Fabricators 2 | . . . . . . . . . 1 . 1 Repair Stations 1 | . 1 . . . . . . . . . . Recycling Units 1 | . 1 . . . . . . . . . . Scanalyzers . | . . . . . . . . . . . . Garrison Access 2 | . . . . . 1 . 1 . . . . Total Hacks 59 | . 13 1 1 28 1 3 7 3 1 . 1 Successful 48 | . 6 1 1 28 1 1 6 2 1 . 1 Failed 11 | . 7 . . . . 2 1 1 . . . Catastrophic . | . . . . . . . . . . . . Database Lockouts . | . . . . . . . . . . . . Manual 1 | . 1 . . . . . . . . . . Terminals 21 | . 9 . . . . 3 6 3 . . . Fabricators 2 | . . . . . . . . . 1 . 1 Repair Stations 1 | . 1 . . . . . . . . . . Recycling Units 3 | . 3 . . . . . . . . . . Scanalyzers . | . . . . . . . . . . . . Garrison Access 2 | . . . . . 1 . 1 . . . . Terminal Hacks 43 | . 5 1 1 28 . 1 5 2 . . . Record 29 | . . . 1 28 . . . . . . . Open Door 1 | . . 1 . . . . . . . . . Level Access Points 1 | . 1 . . . . . . . . . . Alert Level 2 | . . . . . . . 2 . . . . Unreport Threat 1 | . . . . . . . 1 . . . . Maintenance Status 1 | . 1 . . . . . . . . . . Assault Status 1 | . 1 . . . . . . . . . . Registered Components 2 | . 1 . . . . . 1 . . . . Zone Layout 2 | . 1 . . . . . 1 . . . . Patrol Navigation 2 | . . . . . . 1 . 1 . . . Security Stations 1 | . . . . . . . . 1 . . . Fabricator Hacks 2 | . . . . . . . . . 1 . 1 Build 2 | . . . . . . . . . 1 . 1 Repair Station Hacks . | . . . . . . . . . . . . Recycling Unit Hacks . | . . . . . . . . . . . . Scanalyzer . | . . . . . . . . . . . . Garrison Access Hacks 2 | . . . . . 1 . 1 . . . . Unlock Access 2 | . . . . . 1 . 1 . . . . Unauthorized Hacks 1 | . 1 . . . . . . . . . . Terminals . | . . . . . . . . . . . . Fabricators . | . . . . . . . . . . . . Repair Stations 1 | . 1 . . . . . . . . . . Patch 1 | . 1 . . . . . . . . . . Recycling Units . | . . . . . . . . . . . . Scanalyzers . | . . . . . . . . . . . . Garrison Access . | . . . . . . . . . . . . Data Cores Recovered . | . . . . . . . . . . . . Used . | . . . . . . . . . . . . Hacking Detections 8 | . 2 . . . . 1 2 2 . . 1 Full Trace Events 2 | . 1 . . . . . 1 . . . . Feedback Events . | . . . . . . . . . . . . Feedback Blocked . | . . . . . . . . . . . . Robot Schematics Acquired . | . . . . . . . . . . . . Robots Built . | . . . . . . . . . . . . Authchips . | . . . . . . . . . . . . Time . | . . . . . . . . . . . . Total Robot Build Rating . | . . . . . . . . . . . . Part Schematics Acquired . | . . . . . . . . . . . . Parts Built 3 | . . . . . . . . . 1 . 2 Authchips . | . . . . . . . . . . . . Time 226 | . . . . . . . . . 187 . 39 Total Part Build Rating 21 | . . . . . . . . . 7 . 14 Parts Repaired . | . . . . . . . . . . . . Time . | . . . . . . . . . . . . Parts Recycled . | . . . . . . . . . . . . Recycled Matter . | . . . . . . . . . . . . Retrieved Matter . | . . . . . . . . . . . . Retrieved Components . | . . . . . . . . . . . . Parts Scanalyzed . | . . . . . . . . . . . . Part Schematics Acquired . | . . . . . . . . . . . . Parts Damaged . | . . . . . . . . . . . . Bothacking | -11 -10 -10 -10 -7 -5 -5 -5 -5 -4 -4 -4 ------------ Run | Yrd Mat Min Sub Scr Fac Gar Fac Gar Fac Was Fac Used RIF Installer 2 | . . . . . . 1 . 1 . . . Patrol Navigation 1 | . . . . . . . . 1 . . . Robots Hacked 1 | . . . . . . . . . . . 1 Non-combat 1 | . . . . . . . . . . . 1 Combat . | . . . . . . . . . . . . Robot Hacks Applied 1 | . . . . . . . . . . . 1 parse_system 1 | . . . . . . . . . . . 1 Relay Couplers Released 4 | . . . . . . 4 . . . . . Machine Destruction 4 | . . . . . . 4 . . . . . Fabnet Peak Effective % . | . . . . . . . . . . . . Robots Rewired 3 | . . . . . . 3 . . . . . Allies Hacked . | . . . . . . . . . . . . Hacks Repelled . | . . . . . . . . . . . . Allies | -11 -10 -10 -10 -7 -5 -5 -5 -5 -4 -4 -4 -------- Run | Yrd Mat Min Sub Scr Fac Gar Fac Gar Fac Was Fac Total Allies 3 | . . . . . . 3 . . . . . Largest Group 3 | . . . . . . 3 . . . . . Highest-Rated Group 36 | . . . . . . 36 . . . . . Highest-Rated Ally 12 | . . . . . . 12 . . . . . Total Orders . | . . . . . . . . . . . . Ally Attacks 12 | . . . . . . 12 . . . . . Total Damage 137 | . . . . . . 137 . . . . . Kills 1 | . . . . . . 1 . . . . . Allies Corrupted . | . . . . . . . . . . . . Allies Melted . | . . . . . . . . . . . . Intel | -11 -10 -10 -10 -7 -5 -5 -5 -5 -4 -4 -4 ------- Run | Yrd Mat Min Sub Scr Fac Gar Fac Gar Fac Was Fac Active Infowar (turns) . | . . . . . . . . . . . . Robot Analysis Total . | . . . . . . . . . . . . Derelict Logs Recovered 6 | . . 1 2 3 . . . . . . . Drone Launches . | . . . . . . . . . . . . Drone Recoveries . | . . . . . . . . . . . . Exploration | -11 -10 -10 -10 -7 -5 -5 -5 -5 -4 -4 -4 ------------- Run | Yrd Mat Min Sub Scr Fac Gar Fac Gar Fac Was Fac Turns Passed 11963 | 33 383 1054 1435 3964 373 2044 355 961 592 156 613 Spaces Moved 6814 | 32 357 836 995 2216 217 992 147 327 90 146 459 Core 420 | 13 . . 85 138 . . . 11 . 133 40 Treads 3638 | . . . . 1750 217 992 147 316 90 13 113 Legs . | . . . . . . . . . . . . Wheels 2450 | 19 357 836 910 328 . . . . . . . Hover 306 | . . . . . . . . . . . 306 Flight . | . . . . . . . . . . . . Fastest Speed 50 | 50 80 80 90 80 153 153 180 160 240 50 50 Average Speed 145 | 67 80 88 111 176 153 174 198 227 240 77 90 Slowest Speed 700 | 80 80 95 250 450 153 200 200 700 240 250 170 Overloaded Moves . | . . . . . . . . . . . . Propulsion Burnouts . | . . . . . . . . . . . . Robots Hopped . | . . . . . . . . . . . . Potential Cave-ins . | . . . . . . . . . . . . Cave-ins Triggered . | . . . . . . . . . . . . Exploration Rate (%) 44 | 3 69 101 57 90 6 79 3 33 3 80 10 Regions Visited 11 Branch Regions 3 Pre-discovered Areas 10 | . . 2 . 8 . . . . . . . Known Exits Taken 3 | . . . . 1 1 . 1 . . . . Unknown Exits Taken 4 | 1 1 1 1 . . . . . . . . Scrap Searched 10 | . . 2 1 7 . . . . . . . Spaces Dug 2 | . . . . . . 2 . . . . . Terrain Destroyed 197 | . . . 2 . . 164 20 9 . 2 . Melee . | . . . . . . . . . . . . Projectile 122 | . . . 2 . . 89 20 9 . 2 . AOE 75 | . . . . . . 75 . . . . . Terrain Rammed . | . . . . . . . . . . . . Walls Destroyed . | . . . . . . . . . . . . Machines Disabled . | . . . . . . . . . . . . Actions | -11 -10 -10 -10 -7 -5 -5 -5 -5 -4 -4 -4 --------- Run | Yrd Mat Min Sub Scr Fac Gar Fac Gar Fac Was Fac Total 8332 | 42 406 1107 1248 2266 256 1148 174 455 455 164 611 Wait 953 | . 14 231 206 . 20 16 . 25 354 . 87 Move 6804 | 31 356 835 994 2215 216 990 147 326 90 145 459 Hop . | . . . . . . . . . . . . Pick Up 81 | 5 5 9 2 16 5 16 2 13 2 2 4 Fast Attach 21 | 1 . . 1 . . . 2 1 . 1 15 Attach 49 | 5 1 3 1 4 9 4 . 15 2 3 2 Detach . | . . . . . . . . . . . . Swap 31 | . 2 3 2 12 3 7 1 1 . . . Drop 32 | . 1 1 4 14 2 3 2 4 1 . . Fire 313 | . 26 24 38 . 1 80 20 64 6 13 41 Melee 3 | . . . . . . . . . . . 3 Ram 2 | . 1 1 . . . . . . . . . Kick . | . . . . . . . . . . . . Crush . | . . . . . . . . . . . . Escape Stasis 6 | . . . . . . . . 6 . . . Rewire 37 | . . . . 5 . 32 . . . . . Trap . | . . . . . . . . . . . . Miscellaneous . | . . . . . . . . . . . . Route ------- -11/Scrapyard -10/Materials (discovered 5 exits: *Mat x3 / *Min x2) -10/Mines (discovered 3 exits: *Mat x2 / *Sub) -10/Subcaves (discovered 4 exits: *Mat x2 / Rec / *Scr) -7/Scraptown (discovered 2 exits: *Fac x2) -5/Factory (discovered 6 exits: Fac x3 / Upp x2 / Gar) -5/Garrison (discovered 4 exits: *Fac x4) -5/Factory -5/Garrison -4/Factory (discovered 2 exits: Res x2) -4/Waste -4/Factory History --------- Turn | Location | Event 6 | -11/Scrapyard | Discovered new exit (range 16) 34 | -11/Scrapyard | Entered Materials 88 | -10/Materials | Discovered new exit (range 15) 204 | -10/Materials | Discovered new exit (range 16) 304 | -10/Materials | Build established: Mutant 343 | -10/Materials | Identified exit to Materials 376 | -10/Materials | Discovered new exit (range 12) 417 | -10/Materials | Entered Mines 428 | -10/Mines | Met a Derelict bent on vengeance 485 | -10/Mines | Learned location of Zion (-6) 491 | -10/Mines | Discovered exit to Materials (range 4) 631 | -10/Mines | Discovered exit to Materials (range 13) 638 | -10/Mines | Core integrity fell below 50% 726 | -10/Mines | Learned location of Storage (-7) 813 | -10/Mines | Met a Derelict shopkeep closing up shop 1461 | -10/Mines | Discovered new exit (range 9) 1471 | -10/Mines | Entered Subcaves 1472 | -10/Subcaves | Approached by a straggling Scientist 1728 | -10/Subcaves | Disturbed a concealed Subdweller 1819 | -10/Subcaves | Identified exit to Recycling 2032 | -10/Subcaves | Core integrity fell below 20% 2512 | -10/Subcaves | Visited Clippyterm 2519 | -10/Subcaves | Identified exit to Materials 2574 | -10/Subcaves | Learned 2 Materials zone layouts 2893 | -10/Subcaves | Scientist uncovered a shortcut to Scraptown 2906 | -10/Subcaves | Entered Scraptown 2906 | -7/Scraptown | System corruption cleaned by C-Scrubber 3045 | -7/Scraptown | Visited UFD Registry 3106 | -7/Scraptown | Scanned Subdweller tech in exchange for log data 3112 | -7/Scraptown | Learned Research stockpile data 3113 | -7/Scraptown | Learned location of Warlord (-5) 3128 | -7/Scraptown | Discovered new exit (range 13) 3309 | -7/Scraptown | Visited TADAMA 3369 | -7/Scraptown | Visited Bundlers 3498 | -7/Scraptown | Visited Cyclists 3548 | -7/Scraptown | Visited Red Mages 3601 | -7/Scraptown | Visited Comm Corps 3692 | -7/Scraptown | Visited SPCMW 3737 | -7/Scraptown | Visited Awakened 4269 | -7/Scraptown | Registered with UFD as "Pipesink" 4324 | -7/Scraptown | Visited Modified Component R&D 4402 | -7/Scraptown | Visited Junk Repository 4424 | -7/Scraptown | Visited Cartography Club 4567 | -7/Scraptown | Visited Sword Containment 4597 | -7/Scraptown | Visited Scrapoid Pod Storage 4768 | -7/Scraptown | Visited Curators Association 4826 | -7/Scraptown | Visited Research Penetration Think Tank 4882 | -7/Scraptown | Visited Botcube Research 5135 | -7/Scraptown | Learned location of Hub_04(d) (-6) 5135 | -7/Scraptown | Learned location of Testing (-3) 5135 | -7/Scraptown | Learned 12 Materials zone layouts 5135 | -7/Scraptown | Learned 16 Materials zone layouts 5135 | -7/Scraptown | Learned 4 Mines zone layouts 5135 | -7/Scraptown | Learned 16 Lower Caves zone layouts 5135 | -7/Scraptown | Learned 24 Upper Caves zone layouts 5135 | -7/Scraptown | Learned 12 Proximity Caves zone layouts 5135 | -7/Scraptown | Learned 4 Hub_04(d) zone layouts 5135 | -7/Scraptown | Learned location of 3 exits from Factory 5135 | -7/Scraptown | Learned location of 1 exit from Upper Caves 5135 | -7/Scraptown | Learned location of 1 exit from Proximity Caves 5135 | -7/Scraptown | Identified exit to Factory 5135 | -7/Scraptown | Learned 4 Armory zone layouts 5495 | -7/Scraptown | Visited Science Testing Area 5889 | -7/Scraptown | Found Scrap Suit 6136 | -7/Scraptown | Entered Cyclist Reading Room 6870 | -7/Scraptown | Entered Factory 6870 | -5/Factory | Evolved 10 slots: Power x1, Propulsion x2, Utility x5, Weapon x2 6871 | -5/Factory | Identified exit to Factory 6871 | -5/Factory | Identified exit to Upper Caves 7167 | -5/Factory | Build established: Hacker-Scrapper 7242 | -5/Factory | Identified exit to Garrison 7243 | -5/Factory | Entered Garrison 7289 | -5/Garrison | Triggered checkpoint 7349 | -5/Garrison | Discovered new exit (range 5) 7449 | -5/Garrison | Triggered checkpoint 7449 | -5/Garrison | Triggered checkpoint 7493 | -5/Garrison | Lost 3 allies 7543 | -5/Garrison | Triggered checkpoint 7662 | -5/Garrison | Discovered new exit (range 11) 7840 | -5/Garrison | Destroyed 8 combat bots 7847 | -5/Garrison | Triggered checkpoint 8233 | -5/Garrison | Triggered checkpoint 8287 | -5/Garrison | Phase Generator disabled 8350 | -5/Garrison | Found Gamma Bomb Array 8447 | -5/Garrison | Discovered new exit (range 11) 8735 | -5/Garrison | Attempted to access garrison exit controls, blocked by remote lockdown 8907 | -5/Garrison | Triggered checkpoint 9083 | -5/Garrison | Triggered checkpoint 9098 | -5/Garrison | Garrison Relay disabled 9123 | -5/Garrison | Installed Relay Interface Framework 9218 | -5/Garrison | Spotted B-75 Beast 9218 | -5/Garrison | Spotted B-75 Beast 9259 | -5/Garrison | Discovered new exit (range 15) 9287 | -5/Garrison | Entered Factory 9489 | -5/Factory | Garrison activated, responded to threat 9642 | -5/Factory | Identified exit to Garrison 9642 | -5/Factory | Entered Garrison 9700 | -5/Garrison | Triggered checkpoint 9745 | -5/Garrison | Learned Factory security intel 9829 | -5/Garrison | Expanded RIF knowledge: Patrol Navigation 9963 | -5/Garrison | Spotted B-75 Beast 10091 | -5/Garrison | Lost 14 parts (2p3n4u5w) 10094 | -5/Garrison | Destroyed B-75 Beast 10175 | -5/Garrison | Triggered checkpoint 10354 | -5/Garrison | Triggered checkpoint 10503 | -5/Garrison | Build established: Scavenger-Tank 10531 | -5/Garrison | Discovered exit to Factory (range 13) 10603 | -5/Garrison | Entered Factory 10603 | -4/Factory | Evolved 2 slots: Propulsion x1, Utility x1 10604 | -4/Factory | Identified exit to Research 10846 | -4/Factory | Fabricated Adv. Thermal Defense Suite (x1) 11195 | -4/Factory | Sucked down chute 11195 | -4/Factory | Entered Waste 11210 | -4/Waste | EMP discharged 11217 | -4/Waste | Spotted C-40 Crusher 11225 | -4/Waste | Spotted C-40 Crusher 11229 | -4/Waste | Destroyed C-40 Crusher 11244 | -4/Waste | Spotted C-40 Crusher 11246 | -4/Waste | Crushed by Compactor (1 part destroyed, 1 dropped) 11249 | -4/Waste | Crushed by Compactor (1 part destroyed, 1 dropped) 11252 | -4/Waste | Crushed by Compactor (1 part destroyed, 1 dropped) 11255 | -4/Waste | Crushed by Compactor (1 part destroyed, 1 dropped) 11258 | -4/Waste | Crushed by Compactor (1 part destroyed, 2 dropped) 11261 | -4/Waste | Crushed by Compactor (1 part destroyed, 2 dropped) 11262 | -4/Waste | Spotted C-40 Crusher 11267 | -4/Waste | Crushed by Compactor (1 part destroyed, 1 dropped) 11298 | -4/Waste | Lost 8 parts (1p1n3u3w) 11301 | -4/Waste | Spotted C-40 Crusher 11303 | -4/Waste | Crushed by Compactor (1 part destroyed, 1 dropped) 11310 | -4/Waste | EMP discharged 11310 | -4/Waste | System corruption reached 10% 11345 | -4/Waste | Discovered new exit (range 12) 11351 | -4/Waste | Entered Factory 11624 | -4/Factory | Spotted B-86 Titan 11717 | -4/Factory | Core integrity fell below 50% 11730 | -4/Factory | Lost 5 parts (1p2n2w) 11745 | -4/Factory | Fabricated Hyb. Antimatter Reactor? 11882 | -4/Factory | Core integrity fell below 20% 11928 | -4/Factory | Lost 3 parts (1p1n1w) 11964 | -4/Factory | Destroyed by P-70 Sage with Tesla Rifle Last Messages --------------- Acquired 6 matter. System corrupted: Matter fused (-10). Door malfunctions. Acquired Imp. Antigrav System. K-01 Serf cleans the Construction Platform. J%S%=0IIB=ABGP,A:KSZOFLG0 Acquired Imp. Proton Missile Launcher. Nuclear Reactor explodes. Tesla Rifle destroyed. Nuclear Reactor explodes. P-70 Sage destroyed. Imp. Antigrav System destroyed. The unstable cave ceiling collapses. U-05 Engineer builds a Wall. System corrupted: Component data lost. U-05 Engineer builds a Wall. Antigrav System destroyed. Imp. Proton Missile Launcher destroyed. P-70 Sage resets P-70 Sage, system corruption cleaned. Map ----- +----------------------------------------------------+ | ?????????????????????????????????????????????????? | | ?????????????????????????????????????????????????? | | ?????????????????????????????????????????????????? | | ?????????????????????????????????????????????????? | | ?????????????????????????????????????????????????? | | ?????????????????????????????????????????????????? | | ?????????????????????????????????????????????????? | | ?????????????????????????????????????????????????? | | ?????????????????????????????????????????????????? | | ?????????????????????????????????????????????????? | | ?????????????????????????????????????????????????? | | ?????????????????????????????????????????????????? | | ?????????????????????????????????????????????????? | | ?????????????????????????????????????????????????? | | ?????????????????????????????????????????????????? | | ?????????????????????????????????????????????????? | | ?????????????????????????????????????????????????? | | ?????????????????????????????????????????????????? | | ?????????????????????????????????????????????????? | | ##########???????##############??????????????????? | | #???????# #??????????????????? | | """ ! #?????### #??????????????????? | | """"" #?????# #??????????????????? | | "" " #?????# #??????????????????? | | #?????# # ! #??????????????????? | | """ #?????# @ #??????????????????? | | " """ #?????# # ?????????????????? | | "" " #?????# # "???????????????? | | % #?????# # ?????????????? | | #?????# ! """ ????????????? | | #?????# !% """ ????????????? | | #?????# p| # ""??????????????? | | ###+##########; p # ?????????????? | | ^ % BB%## ###? ?????????????? | | BB%## ## # ####???? ????????????? | | #### ?#### #??????? ????????????? | | ########## #??????? ????????????? | | ^ % # # #?????? ""?????????????? | | # """ # ###### """????????????? | | # ! ""R" # """????????????? | | = %" # "" " # """""??????????? | | % " / # ?????????? | | "" # """ = # """""??????????? | | %= % # """ # """????????????? | | % % # """ / """????????????? | | ########### ### # ?????????? | | ###?#####?# #?########## ?????????? | | #?????????# #??????????####+### """""??????????? | | ###########/##????????????????? ""?????????????? | | # #?????????????????? ""?????????????? | +----------------------------------------------------+ Best States ------------- Heat Dissipation 86 Energy Generation 33 Energy Capacity 1100 Matter Stores 550 Matter Capacity 550 Sight Range 16 Terrain Scan Density 10 Armor Coverage 225 Resistance: KI 20 Resistance: TH 50 Resistance: EX 20 Resistance: EM 20 Resistance: I 20 Resistance: S 20 Resistance: P 20 Phase Shifting 5 Evasion (%) 53 Targeting Accuracy 8 Recoil Reduction 8 Kinecelleration 30 Offensive Hacking 21 Authchip Count 2 Item Schematics ----------------- None Robot Schematics ------------------ None Fabricated ------------ Adv. Thermal Defense Suite | x1 | -4/Factory | Preloaded Hyb. Antimatter Reactor | x2 | -4/Factory | Preloaded Repaired ---------- Nothing Alien Tech Used ----------------- None Achievements -------------- Infiltrator Challenges ------------ None Game ------ Seed ScanImpulseParser Manual? 0 Play Time 01:11:48 Cumulative 19.3 hours Start 2025.09.16 @ 12:06:49 End 2025.09.16 @ 13:29:50 Sessions 1 Manual Loads 0 Difficulty Adventurer Special Mode None Game No. 20 Rogue 0 Adventurer 20 Explorer 0 Win Type - Total 1 Types 0/0/0/0/0/0/0/1/0/0 Lore% 41 Gallery% 30 Achievement% 37 Wizard Run 0 Options --------- Layout 1 ASCII 0 Keyboard 0 Movement Mouse Keybinds 0 Fullscreen 2 Font 24/Smallcaps Map View 50x35 Zoom Use 0% Tactical HUD 0 Map Filters NONE Filters NONE Steam 1 RUN: ea1f587f-310e-4d69-8c28-e3bd3aaa4030